bitfinex/quotes_ETHUSD_20250616
["timestamp","ask_amount","ask_price","bid_price","bid_amount"]
[1750042335362,0.8054,2579.7,2578.9,10.0]
[1750042335648,0.1936,2579.6,2579.1,0.7436]
[1750042336206,0.8054,2579.7,2578.8,0.8149]
[1750042336421,0.1936,2579.2,2578.8,0.1936]
[1750042339473,0.8054,2579.1,2578.8,0.1936]
[1750042339757,0.1936,2578.9,2578.4,14.07195382]
[1750042341350,0.1936,2578.9,2578.5,0.55]
[1750042341554,0.8054,2579.1,2578.7,0.55]
[1750042341713,1.8926,2579.2,2578.8,4.11000512]
[1750042341914,0.8046,2579.5,2578.9,0.55]
[1750042342151,0.9982,2579.5,2579.0,0.23236968]
[1750042342662,0.9982,2579.5,2579.0,4.10977094]
[1750042342961,0.9982,2579.5,2579.0,0.1936]
[1750042345337,1.07432,2579.5,2578.8,7.2194]
[1750042345538,0.1936,2579.3,2578.8,6.6256]
[1750042346332,2.5036,2579.5,2578.7,6.432]
[1750042346333,0.8298,2579.2,2578.7,6.432]
[1750042346527,0.1936,2579.1,2578.7,6.432]
[1750042347474,0.1936,2579.1,2578.6,0.1936]
[1750042350059,0.1936,2579.1,2578.6,4.07167253]
[1750042350262,0.1936,2579.1,2578.6,0.1936]
[1750042350430,0.1936,2579.1,2578.6,0.2323763]
[1750042351785,0.1936,2579.1,2578.6,4.11041984]
[1750042351944,2.5288,2579.2,2578.7,4.42779272]
[1750042352150,0.1936,2579.2,2579.0,0.55]
[1750042352484,1.699,2579.9,2578.9,7.15012396]
[1750042352485,0.1936,2579.8,2579.4,0.55]
[1750042352631,0.1936,2580.1,2579.6,0.55]
[1750042352829,0.1936,2580.1,2579.7,0.23235888]
[1750042353229,0.1936,2580.1,2579.7,0.1936]
[1750042353431,0.7738,2580.2,2579.8,0.55]
[1750042353699,0.7738,2580.2,2579.8,0.7436]
[1750042355757,1.04044,2580.2,2579.3,0.7783]
[1750042355932,0.1936,2580.0,2579.5,6.6246]
[1750042358380,0.81,2579.9,2579.2,0.55]
[1750042358579,1.0036,2579.9,2579.5,6.43]
[1750042359442,1.0036,2579.9,2579.4,0.23236426]
[1750042359636,1.0036,2579.9,2579.4,6.6236]
[1750042365788,0.1936,2579.6,2579.3,6.429]
[1750042366655,0.1936,2579.6,2579.3,10.30601009]
[1750042367184,0.1936,2579.6,2579.3,6.429]
[1750042368676,0.1936,2579.6,2579.4,0.55]
[1750042368878,0.1936,2579.9,2579.4,5.41314622]
[1750042369083,2.6712,2580.1,2579.6,0.1936]
[1750042370772,0.7796,2580.1,2579.8,0.1936]
[1750042372309,0.1936,2580.2,2579.8,0.1936]
[1750042373697,0.1936,2580.2,2579.9,0.55]
[1750042373883,0.7531,2580.4,2580.0,0.23235745]
[1750042374205,1.698,2580.5,2580.1,0.55]
[1750042374371,1.698,2580.5,2580.3,0.1936]
[1750042375453,0.1936,2580.8,2580.3,0.1936]
[1750042375454,0.1936,2580.8,2580.4,4.64775199]
[1750042375743,0.1936,2581.0,2580.5,0.7436]
[1750042376444,0.1936,2581.0,2580.5,0.78234694]
[1750042377545,0.77,2581.1,2580.5,0.55]
[1750042377739,0.77,2581.1,2580.7,0.1936]
[1750042380710,0.1936,2581.2,2580.8,0.5887441]
[1750042381063,2.7107,2581.5,2581.0,0.1936]
[1750042381198,2.7107,2581.5,2580.7,0.55]
[1750042381199,2.81022304,2581.5,2580.7,7.7761]
[1750042381550,0.1936,2581.2,2580.8,0.1936]
[1750042381910,0.8201,2581.5,2580.9,0.55]
[1750042382124,0.1936,2581.4,2581.0,0.1936]
[1750042382309,0.1936,2581.4,2581.0,0.23234034]
[1750042382531,0.1936,2581.4,2581.0,0.1936]
[1750042384035,0.1936,2581.4,2581.0,0.23234034]
[1750042384237,1.9175304,2581.6,2581.1,0.55]
[1750042384439,2.1111304,2581.6,2581.1,0.9906]
[1750042385959,0.7655,2581.5,2580.6,0.7968]
[1750042386114,0.1936,2581.1,2580.6,0.1936]
[1750042391719,0.1936,2581.1,2580.6,0.23234619]
[1750042392121,0.1936,2581.1,2580.7,0.55]
[1750042392324,0.1936,2581.3,2580.9,0.1936]
[1750042393519,0.1936,2581.3,2580.9,0.23234198]
[1750042393917,0.1936,2581.3,2580.9,0.1936]
[1750042394158,0.45901,2581.3,2580.9,0.1936]
[1750042394367,0.1936,2581.1,2580.6,6.6176]
[1750042394577,0.1936,2581.1,2580.6,0.1936]
[1750042394719,0.1936,2581.1,2580.6,6.6176]
[1750042395426,0.1936,2581.1,2580.6,0.1936]
[1750042395671,0.8288,2581.0,2579.9,0.7703]
[1750042395976,0.7844,2580.7,2579.7,7.2288]
[1750042396174,0.7844,2580.7,2579.8,6.424]
[1750042396322,0.7844,2580.7,2579.9,0.55]
[1750042396523,0.7844,2580.7,2579.8,6.424]
[1750042396724,1.0978,2580.6,2579.8,6.424]
[1750042396967,0.7844,2580.5,2579.8,6.424]
[1750042397747,0.7844,2580.5,2579.7,0.8048]
[1750042397748,0.7844,2580.5,2579.4,10.8048]
[1750042398091,0.7844,2580.5,2579.7,0.55]
[1750042398298,0.7844,2580.5,2579.4,0.8048]
[1750042398299,0.7844,2580.4,2579.4,0.8048]
[1750042398586,0.7844,2580.2,2579.4,10.8048]
[1750042398938,0.7844,2580.2,2579.2,6.424]
[1750042398939,0.7778,2580.1,2579.2,6.424]
[1750042399139,0.7778,2580.1,2579.2,6.974]
[1750042399340,0.7778,2580.1,2579.1,3.87730788]
[1750042399538,0.7778,2580.1,2579.2,10.33990657]
[1750042399770,0.7778,2580.1,2579.2,6.424]
[1750042400097,2.4728,2580.1,2579.4,0.55]
[1750042400645,2.4728,2580.1,2579.5,0.03876256]
[1750042400857,2.4728,2580.1,2579.4,5.18636924]
[1750042401283,0.7778,2580.1,2579.4,1.3095]
[1750042401795,0.7778,2580.1,2579.0,10.0]
[1750042401796,1.695,2580.1,2579.0,10.0]
[1750042402093,0.99216034,2580.0,2579.1,6.424]
[1750042402256,0.7842,2579.9,2579.2,0.55]
[1750042402460,0.7842,2579.9,2579.1,6.424]
[1750042402976,0.7842,2579.9,2579.1,0.55]
[1750042403291,0.7842,2579.9,2579.2,0.03876751]
[1750042403496,1.05291603,2579.9,2579.2,0.03876751]
[1750042403857,1.05291603,2579.9,2578.8,17.2387]
[1750042403858,0.7791,2579.8,2578.8,17.2387]
[1750042404061,0.7791,2579.8,2579.3,0.55]
[1750042404458,0.7791,2579.8,2579.4,0.03876464]
[1750042404784,1.696,2579.9,2579.4,0.03876464]
[1750042404785,0.38460343,2580.2,2579.4,0.03876464]
[1750042404982,2.523,2580.0,2579.4,3.91554267]
[1750042405156,2.523,2580.0,2579.4,0.03876464]
[1750042405869,1.0206,2580.0,2579.5,0.1936]
[1750042406182,1.16120986,2581.1,2579.4,3.91558984]
[1750042406183,0.1936,2580.3,2579.9,4.06969697]
[1750042406346,0.7889,2580.4,2579.9,0.1936]
[1750042406541,0.7889,2580.4,2580.0,0.23235455]
[1750042407052,0.7889,2580.4,2580.0,0.1936]
[1750042407257,0.7889,2580.4,2579.5,6.425]
[1750042407444,0.1936,2580.1,2579.7,0.1936]
[1750042408544,0.1936,2580.1,2579.7,0.23235996]
[1750042408945,1.8896,2580.3,2579.8,0.1936]
[1750042410254,0.1936,2580.3,2579.8,0.1936]
[1750042410454,0.7889,2580.4,2579.9,0.5887577]
[1750042410780,0.7889,2580.4,2580.0,0.1936]
[1750042410781,0.9825,2580.4,2580.0,0.1936]
[1750042412201,1.25035,2580.4,2580.0,0.1936]
[1750042412389,0.1936,2580.2,2579.7,6.6186]
[1750042412565,0.1936,2580.2,2579.7,6.65735966]
[1750042413106,0.1936,2580.2,2579.7,10.53376042]
[1750042413268,0.1936,2580.4,2579.9,0.1936]
[1750042413473,0.1936,2580.4,2580.0,0.03875571]
[1750042413656,0.8088,2580.7,2580.0,0.03875571]
[1750042413859,0.1936,2580.6,2580.2,0.55]
[1750042414093,0.8088,2580.7,2580.3,0.1936]
[1750042414398,0.1936,2580.8,2580.3,0.1936]
[1750042414605,0.1936,2580.8,2580.4,0.55]
[1750042414761,1.696,2580.9,2580.5,0.1936]
[1750042414960,0.1936,2581.0,2580.5,0.1936]
[1750042415194,0.1936,2581.0,2580.6,0.03874748]
[1750042415799,1.696,2581.3,2580.7,5.19968524]
[1750042416014,0.1936,2581.3,2580.8,0.23234245]
[1750042416303,1.2943353,2581.3,2580.8,0.1936]
[1750042417272,0.1936,2581.3,2580.8,0.1936]
[1750042419345,0.1936,2581.3,2580.8,4.10703711]
[1750042420264,0.1936,2581.3,2580.8,0.23234241]
[1750042420542,0.1936,2581.3,2580.8,0.1936]
[1750042422407,0.1936,2581.3,2580.9,0.03874199]
[1750042423847,0.1936,2581.3,2580.8,0.1936]
[1750042425136,0.1936,2581.3,2580.9,0.0387414]
[1750042425983,0.1936,2581.3,2580.8,0.1936]
[1750042426132,0.1936,2581.3,2580.9,0.0387414]
[1750042426333,1.694,2581.5,2580.9,0.0387414]
[1750042426577,1.8876,2581.5,2581.0,0.1936]
[1750042427168,0.1936,2581.5,2581.1,0.58873989]
[1750042427367,1.9145304,2581.6,2581.2,0.1936]
[1750042427754,3.20385344,2581.6,2580.8,0.7538]
[1750042427952,0.1936,2581.4,2580.9,0.1936]
[1750042428582,0.7663,2581.3,2580.5,0.7999]
[1750042428763,0.1936,2581.0,2580.5,0.9935]
[1750042428966,0.1936,2581.0,2580.5,0.1936]
[1750042429288,0.1936,2580.5,2580.0,0.1936]
[1750042429491,0.7663,2580.4,2579.9,0.1936]
[1750042429787,0.1936,2580.3,2579.9,0.1936]
[1750042430982,0.1936,2580.3,2580.0,3.87594504]
[1750042431288,0.8142,2581.0,2580.2,1.321]
[1750042431494,0.1936,2580.8,2580.3,0.0387494]
[1750042431709,0.1936,2580.8,2580.2,5.39025683]
[1750042431855,0.1936,2580.8,2580.2,5.39025786]
[1750042432275,0.1936,2580.8,2580.3,3.91424628]
[1750042432470,0.1936,2580.8,2580.3,3.87546514]
[1750042432871,10.0,2581.7,2580.6,0.55]
[1750042433114,1.8876,2581.1,2580.6,0.7823455]
[1750042433691,1.8876,2581.1,2580.6,4.6573939]
[1750042433893,1.8876,2581.1,2580.6,5.4876939]
[1750042434108,1.8876,2581.1,2580.6,1.5739]
[1750042434869,0.1936,2581.1,2580.6,1.5739]
[1750042438296,0.1936,2581.1,2580.7,0.03874389]
[1750042438819,0.1936,2581.1,2580.6,1.5739]
[1750042440520,0.1936,2581.1,2580.6,0.1936]
[1750042440680,0.46258,2581.1,2580.6,0.1936]
[1750042441384,0.1936,2581.1,2580.6,0.23234676]
[1750042441599,1.694,2581.4,2580.8,0.7698]
[1750042441791,1.8876,2581.4,2580.9,0.23234165]
[1750042442018,1.694,2581.4,2580.5,0.7698]
[1750042442328,0.1936,2581.1,2580.6,0.1936]
[1750042442715,0.1936,2581.1,2580.6,0.23234631]
[1750042443228,0.1936,2581.1,2580.6,0.1936]
[1750042443416,0.7866,2581.0,2580.6,0.1936]
[1750042443900,1.694,2581.3,2580.6,0.1936]
[1750042444132,2.4806,2581.3,2580.6,0.23234679]
[1750042444609,0.7866,2581.3,2580.7,0.55]
[1750042445430,0.7866,2581.3,2580.6,0.55]
[1750042446226,1.08812277,2581.3,2580.6,0.55]
[1750042448047,1.08812277,2581.3,2580.5,0.7698]
[1750042450262,1.692,2581.2,2580.5,0.7698]
[1750042452439,1.692,2581.2,2580.5,4.68366658]
[1750042452637,1.08812277,2581.3,2580.5,0.80854696]
[1750042452638,2.4786,2581.3,2580.5,0.80854696]
[1750042452839,3.77992277,2581.3,2580.5,0.7698]
[1750042453158,3.77992277,2581.3,2580.4,0.55]
[1750042453673,3.77992277,2581.3,2580.3,0.7658]
[1750042453674,0.7724,2581.2,2580.3,0.7658]
[1750042453960,0.7724,2581.2,2580.4,0.1936]
[1750042453961,0.1936,2580.8,2580.4,0.1936]
[1750042454379,0.966,2580.8,2580.4,0.1936]
[1750042455659,0.1936,2580.6,2580.1,4.06934112]
[1750042456040,0.1936,2580.8,2580.3,0.7436]
[1750042456366,0.1936,2580.8,2580.3,4.61904376]
[1750042456729,0.1936,2580.8,2580.3,4.65779373]
[1750042457068,2.4935,2581.1,2580.5,0.55]
[1750042457274,2.6871,2581.1,2580.6,0.1936]
[1750042457433,2.6871,2581.1,2580.6,4.91108676]
[1750042457766,1.8856,2581.1,2580.6,4.91108676]
[1750042458558,1.8856,2581.1,2580.6,1.03604576]
[1750042458958,2.15431,2581.1,2580.6,0.1936]
[1750042459129,0.1936,2580.9,2580.4,0.1936]
[1750042461247,0.8015,2581.0,2580.4,0.1936]
[1750042461449,0.1936,2580.7,2580.2,7.4153]
[1750042461738,0.1936,2580.7,2580.2,0.1936]
[1750042462175,0.768,2580.6,2579.9,6.418]
[1750042462334,0.1936,2580.5,2580.1,3.87579446]
[1750042462668,0.1936,2580.5,2580.0,4.10824705]
[1750042463228,0.1936,2580.5,2580.0,4.06949255]
[1750042463829,0.1936,2580.5,2580.0,4.10824704]
[1750042464486,0.1936,2580.5,2580.0,0.23235449]
[1750042464671,0.1936,2580.5,2580.0,0.7436]
[1750042464879,0.1936,2580.5,2580.0,0.78235449]
[1750042465491,0.1936,2580.5,2580.1,3.87574553]
[1750042465693,0.1936,2580.5,2580.0,4.65823358]
[1750042465861,0.1936,2580.5,2580.1,0.55]
[1750042466066,0.1936,2580.7,2580.2,0.23235322]
[1750042466587,0.1936,2580.7,2580.2,0.1936]
[1750042467350,0.8136,2581.0,2580.3,5.59915848]
[1750042467553,0.1936,2580.9,2580.4,0.1936]
[1750042470405,0.8136,2581.0,2580.1,6.418]
[1750042470581,0.1936,2580.6,2580.1,6.6116]
[1750042471407,0.8136,2580.5,2579.7,4.80117831]
[1750042471606,0.1936,2580.4,2580.0,6.418]
[1750042472023,0.1936,2580.4,2580.0,6.4567558]
[1750042473626,0.8099,2580.3,2579.5,3.06737831]
[1750042473826,0.8099,2580.1,2579.7,0.1936]
[1750042474025,0.8099,2580.1,2579.2,2.31307831]
[1750042474228,0.8099,2579.7,2579.3,0.1936]
[1750042474734,0.8099,2579.7,2579.0,10.0]
[1750042474919,0.1936,2579.6,2579.2,0.1936]
[1750042478194,0.1936,2579.6,2579.2,4.10951747]
[1750042478618,0.1936,2579.6,2579.2,4.10946673]
[1750042479225,0.8099,2579.7,2579.2,3.91586673]
[1750042479435,0.8099,2579.7,2579.3,0.1936]
[1750042483332,0.1936,2579.8,2579.4,4.4655194]
[1750042484741,0.1936,2579.8,2579.4,10.8845194]
[1750042484925,0.1936,2579.8,2579.4,10.84575419]
[1750042485261,0.1936,2579.8,2579.4,10.8458695]
[1750042485961,0.1936,2579.8,2579.4,10.8458466]
[1750042486972,0.1936,2579.8,2579.4,6.969]
[1750042487175,0.1936,2579.8,2579.4,10.88460844]
[1750042487377,0.1936,2579.8,2579.4,6.969]
[1750042489154,0.1936,2579.8,2579.4,7.00776353]
[1750042490248,0.1936,2579.8,2579.4,10.88462744]
[1750042490550,0.1936,2579.8,2579.4,10.84586574]
[1750042490751,0.1936,2579.8,2579.4,10.84579647]
[1750042490946,0.7994,2580.1,2579.5,4.07031324]
[1750042490947,0.1936,2580.0,2579.5,4.07031324]
[1750042491252,0.1936,2580.0,2579.6,0.03876168]
[1750042492927,0.1436,2580.0,2579.6,0.03876168]
[1750042493617,0.7994,2580.1,2579.6,0.55]
[1750042493919,0.7994,2580.1,2579.7,0.1936]
[1750042494302,0.1936,2580.2,2579.9,4.63922638]
[1750042494502,0.8172,2580.5,2580.0,0.58875421]
[1750042494690,2.5082,2580.7,2580.2,0.55]
[1750042494890,1.691,2581.2,2580.4,1.3132]
[1750042495130,0.1936,2581.0,2580.5,0.23234684]
[1750042495291,0.1936,2581.0,2580.5,0.1936]
[1750042496032,0.1936,2581.0,2580.5,4.10755329]
[1750042496204,0.1936,2581.0,2580.5,0.23234684]
[1750042498251,0.8172,2580.9,2580.5,0.1936]
[1750042498547,0.8172,2580.5,2580.2,6.417]
[1750042499146,0.8172,2580.5,2580.1,6.6106]
[1750042499796,0.8172,2580.5,2580.0,6.416]
[1750042499797,0.1936,2580.4,2580.0,6.416]
[1750042499994,0.1936,2580.4,2579.9,0.1936]
[1750042500347,0.1936,2580.2,2579.8,6.6096]
[1750042500582,0.1936,2580.2,2579.8,0.1936]
[1750042500751,0.7943,2580.1,2579.8,6.6096]
[1750042500893,0.7943,2580.1,2579.8,0.1936]
[1750042501592,0.9879,2580.1,2579.6,6.6096]
[1750042502532,0.9879,2580.1,2579.6,6.64836068]
[1750042503241,0.9879,2580.1,2579.6,6.6096]
[1750042504206,0.9879,2580.1,2579.6,0.1936]
[1750042506031,0.9879,2580.1,2579.6,0.23236129]
[1750042506800,0.7943,2580.1,2579.7,0.55]
[1750042506998,0.7943,2580.1,2579.8,0.23235843]
[1750042508039,0.7943,2580.1,2579.8,0.03875843]
[1750042508040,7.93904811,2580.1,2579.8,0.03875843]
[1750042508348,1.64206481,2580.0,2579.1,17.1942]
[1750042508518,0.8288,2580.0,2579.2,0.03876711]
[1750042509198,2.5188,2580.0,2579.2,0.03876711]
[1750042509801,2.5188,2580.0,2579.3,0.55]
[1750042510029,2.5188,2580.0,2579.4,0.03876729]
[1750042510226,0.7946,2579.9,2579.1,17.1942]
[1750042510426,0.7946,2579.9,2579.2,6.416]
[1750042512147,2.4846,2579.9,2579.2,6.45476726]
[1750042512444,2.4846,2579.9,2579.2,6.416]
[1750042512644,0.7946,2579.9,2579.2,6.416]
[1750042512845,0.7946,2579.9,2579.4,0.55]
[1750042513048,0.7946,2579.9,2579.5,0.03876304]
[1750042514358,0.7946,2579.9,2579.4,0.55]
[1750042514719,0.7946,2579.9,2579.5,0.03876304]
[1750042515407,0.804,2580.6,2579.6,0.55]
[1750042515610,2.494,2580.5,2579.7,0.03876101]
[1750042515937,2.494,2580.5,2579.7,0.80376101]
[1750042516416,0.804,2580.5,2579.7,0.765]
[1750042516622,2.494,2580.5,2579.7,0.765]
[1750042518158,0.8197,2579.9,2579.5,0.1936]
[1750042519471,0.8197,2579.9,2579.5,0.23236304]
[1750042520628,0.1936,2580.0,2579.5,0.23236304]
[1750042520829,0.1936,2580.0,2579.5,0.1936]
[1750042521463,0.1936,2580.0,2579.6,0.03876093]
[1750042522271,1.69,2580.3,2579.7,0.55]
[1750042522425,0.1936,2580.2,2579.8,0.03875746]
[1750042522860,0.1936,2580.2,2579.7,0.7436]
[1750042523222,0.1936,2580.2,2579.8,0.03875747]
[1750042526566,0.1936,2580.2,2579.7,0.1936]
[1750042526787,0.809,2580.1,2579.7,0.1936]
[1750042527607,1.62373481,2580.1,2579.7,0.1936]
[1750042527760,1.62373481,2580.1,2579.5,0.1936]
[1750042527761,0.1936,2579.9,2579.5,0.1936]
[1750042528769,0.8309,2579.8,2579.0,10.0]
[1750042528969,0.1936,2579.7,2579.2,0.1936]
[1750042530100,0.1936,2579.7,2579.2,0.23236638]
[1750042531167,0.1936,2579.7,2579.2,0.1936]
[1750042533561,0.1936,2579.7,2578.8,0.8328]
[1750042533562,0.8049,2579.6,2578.8,0.8328]
[1750042534561,0.8049,2579.6,2578.8,0.55]
[1750042535615,0.8109,2579.3,2577.9,3.83135475]
[1750042535759,0.8238,2579.1,2577.9,4.64945799]
[1750042535960,0.8238,2579.0,2577.7,0.8012]
[1750042536160,0.8238,2578.9,2577.7,0.8012]
[1750042536406,0.8238,2578.9,2577.8,6.414]
[1750042537372,0.8238,2578.9,2577.9,0.03878733]
[1750042537596,0.7952,2578.7,2577.9,0.03878733]
[1750042537894,1.688,2578.6,2577.9,0.03878733]
[1750042538106,1.688,2578.6,2577.8,0.55]
[1750042538285,1.688,2578.6,2577.9,0.03878732]
[1750042538989,0.7952,2578.7,2577.9,0.03878732]
[1750042538990,1.18570731,2578.7,2577.9,0.03878732]
[1750042539196,1.688,2578.6,2577.9,0.03878732]
[1750042543100,1.688,2578.6,2577.9,3.91790483]
[1750042543397,0.1936,2578.4,2578.0,3.87896737]
[1750042543767,0.7952,2578.7,2578.1,0.03878578]
[1750042544100,0.1936,2578.6,2578.1,0.23238578]
[1750042544688,0.1936,2578.6,2578.1,0.1936]
[1750042545062,0.7909,2578.5,2578.1,0.1936]
[1750042550615,0.1936,2578.6,2578.2,3.91737596]
[1750042550816,1.8826,2578.9,2578.5,0.1936]
[1750042550975,1.689,2578.9,2578.5,4.0717433]
[1750042551174,1.689,2578.9,2578.6,0.1936]
[1750042552478,1.689,2578.9,2578.3,0.55]
[1750042552679,0.1936,2578.7,2578.2,6.6096]
[1750042553111,0.1936,2578.7,2578.2,4.0722149]
[1750042553312,7.89,2579.5,2578.6,0.1936]
[1750042553313,2.6797,2579.1,2578.6,0.1936]
[1750042553581,0.9907,2579.1,2578.6,4.0716203]
[1750042553920,0.9907,2579.1,2578.7,3.91669677]
[1750042554083,0.9907,2579.1,2578.7,0.03877443]
[1750042554828,0.9907,2579.1,2578.7,3.91662868]
[1750042555496,2.4422,2579.3,2578.8,3.87762332]
[1750042555838,2.6358,2579.3,2578.9,3.87751561]
[1750042556053,0.8132,2579.5,2579.1,0.55]
[1750042556328,2.6958,2579.7,2579.3,3.87694461]
[1750042557109,1.689,2579.7,2579.4,4.42686793]
[1750042557325,1.689,2579.7,2579.5,0.1936]
[1750042558481,0.7647,2579.9,2579.6,0.58876366]
[1750042558685,0.7647,2579.9,2579.6,4.07009126]
[1750042559193,0.7647,2579.9,2579.6,0.7436]
[1750042560223,1.33672772,2580.1,2579.6,0.7436]
[1750042560421,1.33672772,2580.1,2579.7,0.03875949]
[1750042560715,1.33672772,2580.1,2579.7,3.91517159]
[1750042561333,1.33672772,2580.1,2579.8,3.87625744]
[1750042561334,0.53462772,2580.1,2579.8,3.87625744]
[1750042561641,0.53462772,2580.1,2579.9,3.91478973]
[1750042561787,0.53462772,2580.1,2580.0,0.1936]
[1750042563240,0.7959,2580.0,2579.6,0.1936]
[1750042564855,0.7959,2580.0,2579.6,4.07015425]
[1750042565160,0.7959,2580.0,2579.6,0.1936]
[1750042574967,0.7959,2580.0,2579.4,0.55]
[1750042575139,0.1936,2579.9,2579.5,0.1936]
[1750042576075,0.7614,2579.8,2578.8,3.87769113]
[1750042576227,0.1936,2579.5,2579.0,0.1936]
[1750042577742,0.1936,2579.5,2579.0,4.10983139]
[1750042578077,0.1936,2579.5,2579.0,4.07106106]
[1750042578285,0.1936,2579.5,2579.0,4.10983139]
[1750042578836,0.1936,2579.5,2579.0,4.07106106]
[1750042580374,0.766,2579.7,2579.3,0.55]
[1750042580546,0.766,2579.7,2579.4,4.07039497]
[1750042581192,0.766,2579.7,2579.4,0.1936]
[1750042582310,0.766,2579.7,2579.4,4.07046178]
[1750042582479,2.7134,2579.9,2579.5,3.87671504]
[1750042582817,2.7134,2579.9,2579.4,0.1936]
[1750042589106,0.8041,2579.8,2579.1,10.0]
[1750042589390,6.77905859,2579.9,2579.2,6.41]
[1750042589391,0.8041,2579.5,2579.2,6.41]
[1750042589619,0.8041,2579.5,2579.1,0.1936]
[1750042589818,0.8041,2579.5,2579.1,6.6036]
[1750042590019,0.8041,2579.5,2579.1,0.1936]
[1750042590221,0.1936,2579.4,2579.0,0.1936]
[1750042590422,1.0165,2579.3,2578.8,6.6036]
[1750042592944,1.0165,2579.3,2578.8,0.1936]
[1750042593238,1.0165,2579.3,2578.8,6.6036]
[1750042594699,1.0165,2579.3,2578.8,0.1936]
[1750042594908,1.0165,2579.3,2578.8,6.6036]
[1750042595639,1.0165,2579.3,2578.8,0.1936]
[1750042595940,2.7035,2579.3,2578.8,0.1936]
[1750042599150,1.0165,2579.3,2578.8,0.1936]
[1750042599455,2.7015,2579.3,2578.8,0.1936]
[1750042600183,0.792,2579.2,2578.8,0.1936]
[1750042600379,0.792,2579.2,2578.6,6.41]
[1750042600675,0.792,2579.0,2578.6,0.1936]
[1750042600899,0.1936,2578.9,2578.5,6.6036]
[1750042601056,0.1936,2578.9,2578.5,0.1936]
[1750042602029,0.7547,2578.8,2578.1,10.55]
[1750042602256,0.9483,2578.8,2578.3,0.1936]
[1750042603767,0.9483,2578.8,2578.6,4.76725582]
[1750042603952,0.1936,2579.1,2578.6,4.96085582]
[1750042604157,0.1936,2579.1,2578.6,11.37085582]
[1750042604685,0.1936,2579.1,2578.7,6.41]
[1750042606765,0.8145,2579.0,2578.6,0.1936]
[1750042607990,0.8145,2579.0,2578.6,4.96085582]
[1750042608186,0.1936,2579.1,2578.6,4.99963202]
[1750042608685,1.0051,2579.2,2578.7,0.1936]
[1750042609085,1.0051,2579.2,2578.8,4.76725582]
[1750042610197,1.0051,2579.2,2578.7,0.1936]
[1750042614748,0.1936,2579.2,2578.8,8.68366941]
[1750042615028,0.1936,2579.2,2578.9,6.409]
[1750042616995,0.1936,2579.2,2578.9,10.28659337]
[1750042617200,0.1936,2579.2,2578.9,6.409]
[1750042617718,0.1936,2579.2,2579.0,0.55]
[1750042617933,0.7851,2579.4,2579.0,0.55]
[1750042617934,0.7511,2579.6,2579.1,4.76725582]
[1750042618135,0.1936,2579.5,2579.1,4.99962478]
[1750042618285,0.7511,2579.6,2579.0,5.2244401]
[1750042618286,0.7511,2579.6,2579.3,4.76725582]
[1750042618490,0.7511,2579.6,2579.3,11.36885582]
[1750042618719,0.7511,2579.6,2579.3,6.6016]
[1750042620057,1.0266,2579.8,2579.3,15.24587367]
[1750042620379,1.0266,2579.8,2579.3,6.6016]
[1750042623170,1.0266,2579.8,2579.3,10.47860718]
[1750042623565,0.7612,2581.0,2580.5,0.55]
[1750042623766,0.7612,2581.0,2580.6,6.407]
[1750042624490,0.7612,2581.0,2580.7,6.426]
[1750042633232,0.7612,2581.0,2580.6,3.87500702]
[1750042633512,0.9548,2581.0,2580.7,6.409]
[1750042634067,0.7811,2580.9,2580.4,6.407]
[1750042634317,0.1936,2580.7,2580.4,6.407]
[1750042634516,0.1936,2580.7,2580.3,0.1936]
[1750042634755,0.1936,2580.7,2580.3,6.6026]
[1750042638881,0.1936,2580.7,2580.3,10.47801667]
[1750042639086,0.7811,2580.9,2580.5,3.87519441]
[1750042639281,0.9747,2580.9,2580.5,0.1936]
[1750042639836,0.9747,2580.9,2580.5,4.06881472]
[1750042640135,0.9747,2580.9,2580.5,0.1936]
[1750042641108,0.7811,2580.9,2580.4,6.405]
[1750042641306,0.1936,2580.7,2580.4,6.405]
[1750042641690,0.1936,2580.7,2580.3,0.1936]
[1750042641891,0.1936,2580.7,2580.3,6.5986]
[1750042643796,0.1936,2580.7,2580.3,6.5976]
[1750042644405,0.1936,2580.7,2580.3,0.1936]
[1750042644605,0.1936,2580.7,2580.3,6.5976]
[1750042645090,0.1936,2580.7,2580.3,0.1936]
[1750042645289,0.1936,2580.7,2580.3,6.5976]
[1750042645495,0.1936,2580.7,2579.7,0.8067]
[1750042645496,0.7944,2580.6,2579.7,0.8067]
[1750042645702,0.7944,2580.3,2579.9,0.1936]
[1750042646338,0.7944,2580.3,2579.8,6.404]
[1750042646544,0.988,2580.3,2579.8,0.1936]
[1750042646792,0.8242,2580.2,2579.1,0.772]
[1750042647088,0.1936,2580.0,2579.5,0.1936]
[1750042653514,0.1936,2580.0,2579.6,0.21640739]
[1750042653672,0.1936,2580.0,2579.5,0.1936]
[1750042654573,0.1936,2580.0,2579.6,0.21643292]
[1750042654773,0.1936,2580.0,2579.5,0.1936]
[1750042655422,0.1936,2580.0,2579.6,0.21644243]
[1750042655613,0.1936,2580.0,2579.5,0.1936]
[1750042656274,0.1936,2580.0,2579.6,0.21645399]
[1750042656480,0.1936,2580.0,2579.5,0.1936]
[1750042657819,0.1936,2580.0,2579.6,0.21649741]
[1750042658122,0.1936,2580.0,2579.5,0.1936]
[1750042658332,4.76725582,2579.8,2579.6,0.21650746]
[1750042658497,0.7744,2579.5,2578.9,0.1936]
[1750042658828,0.7744,2579.3,2578.3,0.7873]
[1750042658980,0.1936,2578.8,2578.4,0.1936]
[1750042659184,0.1936,2578.8,2578.4,4.96085582]